bitfinex/quotes_SOLUSD_20240717
["timestamp","ask_amount","ask_price","bid_price","bid_amount"]
[1721221913542,34.8,161.21,161.18,15.6859]
[1721221913737,41.0031,161.21,161.18,15.6859]
[1721221915863,34.8,161.21,161.18,15.6859]
[1721221918643,34.8,161.21,161.19,30.0]
[1721221921145,14.8,161.2,161.19,30.0]
[1721221922046,14.8,161.2,161.16,1.24079159]
[1721221922245,14.8,161.2,161.17,30.0]
[1721221925366,14.8,161.19,161.17,30.0]
[1721221929973,14.8,161.18,161.17,30.0]
[1721221930773,34.8,161.18,161.12,15.4817]
[1721221930978,14.8,161.17,161.14,30.0]
[1721221932154,14.8,161.16,161.14,30.0]
[1721221933971,14.8,161.17,161.14,30.0]
[1721221934273,34.8,161.18,161.15,1.2410486]
[1721221934472,20.0,161.18,161.15,31.2410486]
[1721221935254,21.8092,161.26,161.15,31.2410486]
[1721221935459,14.8,161.21,161.16,14.8]
[1721221935662,6.2019,161.25,161.16,44.8]
[1721221935863,14.8,161.21,161.16,44.8]
[1721221936075,14.8,161.21,161.17,1.24062252]
[1721221936376,14.8,161.21,161.18,1.24074892]
[1721221936578,14.8,161.21,161.18,30.0]
[1721221936968,14.8,161.2,161.18,30.0]
[1721221937558,14.8,161.19,161.18,30.0]
[1721221937980,14.8,161.2,161.18,30.0]
[1721221938367,14.8,161.19,161.18,30.0]
[1721221938770,6.2027,161.22,161.18,30.0]
[1721221938974,14.8,161.19,161.18,30.0]
[1721221939571,14.8,161.2,161.18,30.0]
[1721221939882,14.8,161.19,161.18,30.0]
[1721221940872,6.2064,161.13,161.08,1.24107353]
[1721221941066,6.2065,161.12,161.08,30.0]
[1721221941267,20.0,161.11,161.08,30.0]
[1721221941471,34.8,161.11,161.08,30.0]
[1721221941975,20.0,161.11,161.07,17.77021157]
[1721221942178,20.0,161.11,161.08,1.24149194]
[1721221942361,20.0,161.12,161.07,32.57019194]
[1721221942562,20.0,161.12,161.06,0.8394047]
[1721221942775,6.214,161.1,161.07,30.0]
[1721221942962,6.2084,161.07,161.06,0.8394047]
[1721221943281,41.0084,161.07,161.06,0.8394047]
[1721221943960,86.0084,161.07,161.06,0.8394047]
[1721221944380,71.2084,161.07,161.06,0.8394047]
[1721221949479,26.2084,161.07,161.06,0.8394047]
[1721221950570,20.0,161.07,161.06,0.8394047]
[1721221952373,26.2084,161.07,161.06,0.8394047]
[1721221953890,20.0,161.07,161.06,0.8394047]
[1721221954099,26.2084,161.07,161.06,0.8394047]
[1721221955996,71.2084,161.07,161.06,0.8394047]
[1721221956792,20.0,161.07,161.06,0.8394047]
[1721221956994,26.2084,161.07,161.06,0.8394047]
[1721221957177,71.2084,161.07,161.06,0.8394047]
[1721221959399,65.0,161.07,161.06,0.8394047]
[1721221959597,20.0,161.07,161.06,0.8394047]
[1721221960675,26.2084,161.07,161.06,0.8394047]
[1721221961299,71.2084,161.07,161.06,0.8394047]
[1721221963383,87.7975,161.07,161.06,0.8394047]
[1721221966189,102.6275,161.07,161.06,0.8394047]
[1721221966378,108.8415,161.07,161.06,0.8394047]
[1721221968697,102.6275,161.07,161.06,0.8394047]
[1721221968894,108.8415,161.07,161.06,0.8394047]
[1721221969295,102.6275,161.07,161.06,0.8394047]
[1721221970000,108.8415,161.07,161.06,0.8394047]
[1721221970201,102.6275,161.07,161.06,0.8394047]
[1721221971189,102.6275,161.07,160.96,6.2126]
[1721221971190,6.2112,161.0,160.96,6.2126]
[1721221971383,34.83,160.99,160.96,6.2126]
[1721221971702,34.83,160.99,160.94,31.3106]
[1721221971703,41.0415,160.99,160.95,6.213]
[1721221972001,41.0415,160.99,160.96,30.0]
[1721221972385,21.042,160.98,160.96,30.0]
[1721221973202,86.0423,160.97,160.96,30.0]
[1721221973803,86.0423,160.97,160.94,16.4806]
[1721221973988,14.83,160.95,160.92,12.4659]
[1721221974195,20.0,160.94,160.92,6.2142]
[1721221974506,20.0,160.94,160.92,6.2141]
[1721221975303,20.0,160.94,160.9,16.0943047]
[1721221975508,20.0,160.94,160.93,6.2138]
[1721221977710,14.83,160.99,160.95,6.213]
[1721221978022,14.83,160.97,160.93,30.0]
[1721221978193,41.0427,160.96,160.93,30.0]
[1721221978390,20.0,160.95,160.93,36.2137]
[1721221978608,20.0,160.95,160.94,6.2134]
[1721221978789,20.0,160.95,160.94,36.2134]
[1721221979096,31.25411808,161.12,160.94,36.2134]
[1721221979097,15.5237,161.05,160.94,30.0]
[1721221979287,14.83,160.97,160.94,30.0]
[1721221979620,14.83,160.98,160.94,30.0]
[1721221979788,20.0,160.97,160.94,36.2133]
[1721221980211,34.83,160.97,160.94,36.2133]
[1721221980383,34.83,160.97,160.95,6.213]
[1721221980589,20.0,160.97,160.95,30.0]
[1721221981091,20.0,160.98,160.95,30.0]
[1721221981299,20.0,160.98,160.96,6.2126]
[1721221981501,20.0,160.98,160.96,36.2126]
[1721221981706,26.2122,160.98,160.96,30.0]
[1721221981884,41.0422,160.98,160.96,30.0]
[1721221982086,34.83,160.98,160.96,30.0]
[1721221982286,21.0423,160.97,160.96,30.0]
[1721221982506,86.0423,160.97,160.96,30.0]
[1721221983208,86.0423,160.97,160.93,6.2137]
[1721221983414,34.83,160.96,160.93,6.2137]
[1721221983719,14.83,160.95,160.92,6.2142]
[1721221983885,14.83,160.95,160.93,36.2138]
[1721221984312,34.83,160.96,160.93,36.2138]
[1721221985112,41.0428,160.96,160.93,30.0]
[1721221985314,59.83,160.95,160.93,30.0]
[1721221985521,66.0431,160.95,160.93,30.0]
[1721221985808,34.83,160.94,160.91,6.2145]
[1721221986306,20.0,160.94,160.91,6.2145]
[1721221986497,20.0,160.94,160.92,6.2141]
[1721221987699,20.0,160.94,160.93,6.2138]
[1721221987909,20.0,160.94,160.92,6.2141]
[1721221988132,20.0,160.95,160.93,6.2138]
[1721221989322,20.0,160.95,160.92,6.2141]
[1721221989995,20.0,160.95,160.93,6.2138]
[1721221990196,20.0,160.96,160.92,6.2141]
[1721221990502,26.2128,160.96,160.92,6.2141]
[1721221990812,41.0428,160.96,160.92,6.2141]
[1721221991998,34.83,160.96,160.9,16.0943047]
[1721221992218,41.043,160.96,160.91,36.2145]
[1721221992433,6.2131,160.95,160.91,36.2145]
[1721221992728,20.0,160.94,160.91,36.2144]
[1721221994450,20.0,160.94,160.92,6.2141]
[1721221994592,20.0,160.95,160.92,6.2141]
[1721221995130,20.0,160.95,160.93,6.2138]
[1721221995419,23.1091,161.01,160.92,14.83]
[1721221995730,14.83,160.99,160.95,6.2127]
[1721221996029,21.0415,160.99,160.95,6.2127]
[1721221996233,14.83,161.01,160.95,14.83]
[1721221996607,14.83,161.01,160.97,6.2122]
[1721221997001,21.0405,161.02,160.97,36.2122]
[1721221997214,14.83,161.02,160.97,36.2122]
[1721221997495,6.2118,160.99,160.97,30.0]
[1721221997707,6.2108,161.01,160.97,30.0]
[1721221997994,21.0419,160.98,160.97,30.0]
[1721221998196,59.5401,160.98,160.97,30.0]
[1721221998395,79.5401,160.98,160.97,30.0]
[1721221998612,130.7541,160.98,160.97,30.0]
[1721221999021,6.2141,160.93,160.9,0.8394047]
[1721221999225,20.0,160.92,160.9,0.8394047]
[1721222000127,34.83,160.92,160.9,0.8394047]
[1721222000336,21.0446,160.91,160.9,0.8394047]
[1721222000529,41.0446,160.91,160.9,0.8394047]
[1721222000833,20.0,160.91,160.9,0.8394047]
[1721222001202,26.2146,160.91,160.9,0.8394047]
[1721222003311,20.0,160.91,160.9,0.8394047]
[1721222004026,41.0446,160.91,160.9,0.8394047]
[1721222004210,20.0,160.91,160.9,0.8394047]
[1721222004529,26.2146,160.91,160.9,0.8394047]
[1721222006112,20.0,160.91,160.9,0.8394047]
[1721222006516,34.83,160.91,160.9,0.8394047]
[1721222007340,41.0446,160.91,160.9,0.8394047]
[1721222007844,86.0446,160.91,160.9,0.8394047]
[1721222010045,92.2586,160.91,160.9,0.8394047]
[1721222011823,86.0446,160.91,160.9,0.8394047]
[1721222012119,92.2586,160.91,160.9,0.8394047]
[1721222018425,92.2586,160.91,160.9,0.8394047]
[1721222021456,71.2146,160.91,160.9,0.8394047]
[1721222021645,86.0446,160.91,160.9,0.8394047]
[1721222022038,92.2586,160.91,160.9,0.8394047]
[1721222022657,86.0446,160.91,160.9,0.8394047]
[1721222023257,92.2586,160.91,160.9,0.8394047]
[1721222026366,22.5766,161.01,160.91,6.2143]
[1721222026656,14.83,160.92,160.9,0.8394047]
[1721222027036,14.83,160.91,160.9,0.8394047]
[1721222027239,21.0446,160.91,160.9,0.8394047]
[1721222027662,41.0446,160.91,160.9,0.8394047]
[1721222027868,71.2146,160.91,160.9,0.8394047]
[1721222028056,86.0446,160.91,160.9,0.8394047]
[1721222028860,92.2586,160.91,160.9,0.8394047]
[1721222040286,86.0446,160.91,160.9,0.8394047]
[1721222040491,41.0446,160.91,160.9,0.8394047]
[1721222041391,6.1402,160.95,160.9,0.8394047]
[1721222041392,21.0439,160.93,160.9,0.8394047]
[1721222042781,6.2142,160.92,160.9,0.8394047]
[1721222043356,21.0439,160.93,160.9,0.8394047]
[1721222043562,20.0,160.92,160.9,0.8394047]
[1721222043758,41.0439,160.93,160.9,0.8394047]
[1721222043986,21.0443,160.92,160.9,0.8394047]
[1721222044288,20.0,160.91,160.9,30.8394047]
[1721222044782,20.0,160.91,160.9,0.8394047]
[1721222046261,20.0,160.91,160.9,7.0544047]
[1721222046899,20.0,160.91,160.9,0.8394047]
[1721222047266,6.2123,160.98,160.93,6.2137]
[1721222047467,21.0423,160.98,160.93,6.2137]
[1721222048065,6.2123,160.97,160.93,6.2137]
[1721222048259,6.2123,160.97,160.93,21.0437]
[1721222048871,20.0,160.96,160.93,21.0437]
[1721222049187,20.0,160.96,160.9,37.2376047]
[1721222049188,6.212,160.98,160.94,21.0433]
[1721222049685,6.2121,160.98,160.95,16.546]
[1721222050264,20.0,160.97,160.95,16.546]
[1721222050896,20.0,160.97,160.95,46.546]
[1721222051273,21.0405,161.02,160.96,14.83]
[1721222051574,62.5675,161.09,160.97,14.83]
[1721222051575,21.04,161.03,160.97,14.83]
[1721222051767,14.83,161.04,160.98,14.83]
[1721222051970,6.2101,161.03,160.99,6.2115]
[1721222052368,14.83,161.04,161.0,6.211]
[1721222052587,21.0397,161.04,160.99,6.2114]
[1721222052888,14.83,161.03,160.98,30.0]
[1721222053089,6.2107,161.02,160.98,30.0]
[1721222053297,6.2112,161.0,160.98,30.0]
[1721222053665,6.2115,160.99,160.98,30.0]
[1721222053990,41.0415,160.99,160.98,30.0]
[1721222054370,41.0415,160.99,160.95,16.546]
[1721222054583,20.0,160.98,160.95,16.546]
[1721222054964,20.0,160.98,160.95,22.759]
[1721222055567,20.0,160.98,160.96,6.2126]
[1721222055774,20.0,160.98,160.97,6.2123]
[1721222056887,20.0,160.98,160.97,21.0423]
[1721222057403,21.0401,161.03,160.97,14.83]
[1721222057702,21.0397,161.04,161.0,6.2111]
[1721222057870,6.21,161.03,160.99,6.2115]
[1721222058071,21.04,161.03,160.99,6.2115]
[1721222058970,20.0,161.02,160.99,6.2115]
[1721222059189,20.0,161.02,160.99,7.45362609]
[1721222059696,20.0,161.02,160.99,6.2115]
[1721222059904,26.2105,161.02,160.98,14.83]
[1721222060115,26.2105,161.02,160.97,21.042]
[1721222060398,6.2109,161.01,160.98,30.0]
[1721222060598,20.0,161.0,160.97,6.212]
[1721222060798,20.0,161.0,160.95,16.546]
[1721222060975,34.83,161.0,160.95,16.546]
[1721222061170,20.0,161.0,160.95,16.546]
[1721222061391,14.83,160.99,160.96,30.0]
[1721222062198,14.83,160.97,160.96,30.0]
[1721222062375,34.83,160.97,160.96,30.0]
[1721222062575,6.2127,160.96,160.92,6.2142]
[1721222062797,21.0427,160.96,160.92,6.2142]
[1721222063094,14.83,160.96,160.92,6.2142]
[1721222063273,14.83,160.96,160.93,6.2138]
[1721222063792,14.83,160.96,160.92,6.2141]
[1721222064201,14.83,160.95,160.92,6.2141]
[1721222064579,14.83,160.96,160.93,6.2138]
[1721222064784,45.0,160.95,160.93,6.2137]
[1721222065591,45.0,160.95,160.92,1.24275081]
[1721222065785,45.0,160.95,160.94,6.2134]
[1721222067580,20.0,160.97,160.92,16.07275081]
[1721222067781,14.83,160.99,160.95,6.213]
[1721222067981,45.0,160.98,160.95,6.213]
[1721222068190,20.0,160.97,160.95,6.213]
[1721222068383,20.0,160.97,160.94,21.0434]
[1721222068595,20.0,160.97,160.94,6.2134]
[1721222068801,20.0,160.97,160.93,6.2137]
[1721222069098,20.0,160.97,160.94,6.2134]
[1721222069275,20.0,160.97,160.95,6.2129]
[1721222069473,20.0,160.97,160.95,36.2129]
[1721222070099,20.0,160.97,160.95,30.0]
[1721222070704,20.0,160.97,160.95,36.213]
[1721222071497,21.0416,160.99,160.95,36.213]
[1721222071498,20.0,160.98,160.95,36.213]
[1721222072303,20.0,160.98,160.95,30.0]
[1721222073002,34.83,160.98,160.95,30.0]
[1721222074101,6.2123,160.97,160.95,30.0]
[1721222074295,20.0,160.96,160.95,30.0]
[1721222077487,7.76800832,161.04,160.95,30.0]
[1721222077691,14.83,161.06,161.0,14.83]
[1721222077991,21.0386,161.07,161.02,6.2104]
[1721222078191,6.2088,161.06,161.02,6.2104]
[1721222078897,6.2088,161.06,160.94,10.0]
[1721222078898,1.24205585,161.05,160.94,10.0]
[1721222079122,1.24205585,161.04,160.96,30.0]
[1721222079280,27.45195585,161.04,160.95,29.65]
[1721222079480,45.0,161.03,160.95,29.65]
[1721222079676,21.24205585,161.02,160.92,29.65]
[1721222079911,1.24205585,161.01,160.92,29.65]
[1721222080803,21.24205585,161.02,160.94,30.0]
[1721222081302,20.0,161.02,160.94,30.0]
[1721222081798,21.24205585,161.02,160.94,30.0]
[1721222081998,21.24205585,161.02,160.95,16.6601]
[1721222082194,20.0,161.02,160.98,30.0]
[1721222082385,20.0,161.05,160.99,1.24205414]
[1721222082583,46.24205585,161.04,160.98,30.0]
[1721222082777,20.0,161.03,160.98,30.0]
[1721222084811,21.24205585,161.03,160.98,30.0]
[1721222085901,45.0,161.02,160.98,30.0]
[1721222087207,45.0,161.02,160.99,1.24217611]
[1721222087406,45.0,161.02,161.0,30.0]
[1721222088711,20.0,161.03,161.0,30.0]
[1721222088899,20.0,161.04,161.0,30.0]
[1721222089105,21.24205585,161.04,161.0,30.0]
[1721222089400,1.24205585,161.03,161.0,30.0]
[1721222089605,1.24205585,161.04,161.0,30.0]
[1721222089804,21.24205585,161.04,161.0,30.0]
[1721222090009,27.45175585,161.04,161.0,30.0]
[1721222090313,1.24205585,161.03,161.0,30.0]
[1721222090517,52.45215585,161.03,161.0,30.0]
[1721222090693,20.0,161.02,161.0,30.0]
[1721222091116,21.24205585,161.02,161.0,30.0]
[1721222091292,45.0,161.01,161.0,30.0]
[1721222092412,20.0,161.02,161.0,30.0]
[1721222092714,21.24205585,161.04,161.0,30.0]
[1721222092888,45.0,161.03,161.0,30.0]
[1721222093089,20.0,161.02,161.0,30.0]
[1721222094891,21.24205585,161.02,161.0,30.0]
[1721222096020,20.0,161.02,161.0,30.0]
[1721222097319,21.24205585,161.02,161.0,30.0]
[1721222097696,20.0,161.02,161.0,30.0]
[1721222097994,21.24205585,161.02,161.0,30.0]
[1721222098501,1.24205585,161.02,161.0,30.0]
[1721222098811,45.0,161.03,161.0,30.0]
[1721222099120,46.24205585,161.03,161.0,30.0]
[1721222099787,46.24205585,161.04,161.0,30.0]
[1721222100017,20.0,161.03,161.0,30.0]
[1721222100215,20.0,161.03,161.01,16.07217501]
[1721222100419,20.0,161.06,161.02,14.83]
[1721222100917,1.24205585,161.05,161.01,44.83]
[1721222101290,1.24205585,161.05,161.02,30.0]
[1721222101729,46.24205585,161.05,161.02,30.0]
[1721222101908,20.0,161.04,161.02,30.0]
[1721222103002,21.24205585,161.04,161.02,30.0]
[1721222103223,20.0,161.04,161.02,30.0]
[1721222104129,21.24205585,161.04,161.02,30.0]
[1721222106235,27.45165585,161.04,161.02,30.0]
[1721222108940,21.24205585,161.04,161.02,30.0]
[1721222109110,20.0,161.04,161.02,30.0]
[1721222109607,27.45165585,161.04,161.02,30.0]
[1721222112142,21.24205585,161.04,161.02,30.0]
[1721222112711,20.0,161.04,161.02,30.0]
[1721222112910,20.0,161.04,161.02,44.83]
[1721222113125,1.24205585,161.08,161.03,16.07196359]
[1721222113330,21.269,161.12,161.07,14.83]
[1721222113529,6.439,161.12,161.07,14.83]
[1721222113729,7.68105585,161.12,161.07,14.83]
[1721222113935,13.88765585,161.12,161.07,14.83]
[1721222114135,7.68105585,161.12,161.07,14.83]
[1721222114562,1.24205585,161.12,161.08,14.83]
[1721222115143,7.44865585,161.12,161.08,14.83]
[1721222115638,51.207,161.11,161.06,14.83]
[1721222115835,36.07205585,161.1,161.06,30.0]
[1721222116042,45.0,161.09,161.06,30.0]
[1721222116344,45.0,161.09,161.04,14.83]
[1721222116645,46.24205585,161.09,161.04,14.83]
[1721222116813,46.24205585,161.09,161.05,30.0]
[1721222117845,45.0,161.09,161.05,44.83]
[1721222118863,51.2077,161.09,161.05,30.0]
[1721222120046,1.24205585,161.08,161.05,30.0]
[1721222120349,59.83,161.09,161.05,30.0]
[1721222120847,45.0,161.09,161.05,30.0]
[1721222121024,46.24205585,161.09,161.05,44.83]
[1721222121442,20.0,161.1,161.05,44.83]
[1721222121652,6.2066,161.12,161.06,16.07168904]
[1721222121856,21.24205585,161.11,161.07,30.0]
[1721222122342,20.0,161.11,161.07,44.83]
[1721222122523,42.27865585,161.12,161.07,44.83]
[1721222122840,45.0,161.11,161.07,30.0]
[1721222123044,20.0,161.1,161.07,30.0]
[1721222123226,21.24205585,161.1,161.07,30.0]
[1721222123425,20.0,161.1,161.07,30.0]
[1721222123822,21.24205585,161.1,161.07,30.0]
[1721222124033,45.0,161.09,161.07,30.0]
[1721222124237,21.24205585,161.1,161.07,30.0]
[1721222124741,45.0,161.09,161.07,30.0]
[1721222124950,27.44935585,161.1,161.07,30.0]
[1721222124951,21.24205585,161.1,161.07,30.0]
[1721222127244,21.24205585,161.1,161.07,44.83]
[1721222127245,20.0,161.1,161.07,44.83]
[1721222127467,1.24205585,161.14,161.09,14.83]
[1721222127765,15.5109,161.18,161.12,14.83]
[1721222127766,14.83,161.18,161.12,14.83]
[1721222127929,32.60815585,161.19,161.13,14.83]
[1721222128120,38.81225585,161.19,161.13,14.83]
[1721222128319,6.2042,161.18,161.13,14.83]
[1721222128521,1.24205585,161.17,161.09,31.24101517]
[1721222128722,7.44675585,161.17,161.13,44.83]
[1721222128921,7.44675585,161.17,161.13,30.0]
[1721222128922,1.24205585,161.17,161.13,30.0]
[1721222129259,6.2057,161.14,161.13,30.0]
[1721222129733,51.2057,161.14,161.13,30.0]
[1721222129927,66.0357,161.14,161.13,30.0]
[1721222130332,86.0357,161.14,161.13,30.0]
[1721222131541,6.2063,161.13,161.07,14.83]
[1721222131846,46.24205585,161.12,161.09,30.0]
[1721222132656,46.24205585,161.13,161.09,30.0]
[1721222133349,52.44825585,161.13,161.09,30.0]
[1721222133655,20.0,161.14,161.09,30.0]
[1721222133861,1.24205585,161.13,161.09,30.0]
[1721222134024,21.24205585,161.13,161.09,30.0]
[1721222134656,42.27825585,161.13,161.09,30.0]
[1721222135156,46.24205585,161.12,161.09,30.0]
[1721222135853,61.07205585,161.12,161.09,30.0]
[1721222136156,20.0,161.11,161.09,30.0]
[1721222136354,46.24205585,161.1,161.09,30.0]
[1721222136655,61.07205585,161.1,161.09,30.0]
[1721222136830,59.83,161.1,161.09,30.0]
[1721222137033,67.27935585,161.1,161.09,30.0]
[1721222137245,87.27935585,161.1,161.09,30.0]
[1721222137549,81.07205585,161.1,161.09,30.0]
[1721222138240,65.0,161.1,161.09,30.0]
[1721222138622,20.0,161.1,161.09,30.0]
[1721222138824,21.2106,161.14,161.09,30.0]
[1721222138825,21.24205585,161.13,161.09,30.0]
[1721222139036,21.24205585,161.13,161.09,31.24136116]
[1721222139247,20.0,161.13,161.09,31.24136116]
[1721222139627,20.0,161.13,161.09,30.0]
[1721222139828,20.0,161.13,161.09,31.24128724]
[1721222140536,20.0,161.13,161.09,46.07128724]
[1721222140861,20.0,161.13,161.1,1.2412831]
[1721222141032,1.24205585,161.15,161.11,1.24128412]
[1721222141223,14.83,161.16,161.11,16.07128412]
[1721222141839,21.035,161.16,161.11,16.07128412]
[1721222142060,21.035,161.16,161.11,46.07128412]
[1721222142249,21.035,161.16,161.12,1.24117911]
[1721222142456,65.0,161.15,161.12,1.24117911]
[1721222142657,20.0,161.15,161.12,14.83]
[1721222142855,14.83,161.17,161.12,14.83]
[1721222143062,1.24205585,161.19,161.12,14.83]
[1721222143063,20.0,161.16,161.13,1.24099468]
[1721222143357,20.0,161.16,161.13,16.07099468]
[1721222143536,21.0335,161.2,161.14,14.83]
[1721222143729,1.24205585,161.21,161.14,14.83]
[1721222143924,21.0335,161.2,161.15,14.83]
[1721222144136,21.0339,161.19,161.15,30.0]
[1721222144867,20.0,161.18,161.15,30.0]
[1721222145650,20.0,161.19,161.15,46.07087848]
[1721222146149,20.0,161.2,161.16,14.83]
[1721222146334,20.0,161.2,161.16,44.83]
[1721222146536,14.83,161.21,161.17,1.24077023]
[1721222146747,14.83,161.21,161.16,44.83]
[1721222146748,14.83,161.22,161.18,1.24076198]
[1721222146952,16.07205585,161.22,161.18,1.24076198]
[1721222147136,22.27455585,161.23,161.18,1.24076198]
[1721222147346,22.27455585,161.23,161.18,31.24076198]
[1721222147661,6.2027,161.22,161.18,31.24076198]
[1721222147957,42.27515585,161.21,161.18,30.0]
[1721222148129,20.0,161.21,161.18,30.0]
[1721222149961,20.0,161.21,161.18,31.24065826]
[1721222150747,20.0,161.22,161.18,31.24065826]
[1721222150946,45.0,161.21,161.18,31.24065826]
[1721222151262,20.0,161.2,161.18,31.24065826]
[1721222151564,45.0,161.21,161.18,31.24065826]
[1721222152267,66.0331,161.21,161.18,30.0]
[1721222152864,16.07205585,161.2,161.18,30.0]
[1721222154163,45.0,161.21,161.18,30.0]
[1721222154668,1.24205585,161.25,161.18,46.07066096]
[1721222154873,16.07205585,161.25,161.2,14.83]
[1721222155038,16.07205585,161.25,161.21,1.24039047]
[1721222155039,14.83,161.25,161.21,1.24039047]
[1721222155561,16.07205585,161.26,161.21,16.07039047]
[1721222155857,22.27325585,161.26,161.21,16.07039047]
[1721222156061,16.07205585,161.25,161.21,30.0]
[1721222156366,20.0,161.24,161.21,30.0]
[1721222156665,52.44445585,161.23,161.21,30.0]
[1721222156976,7.44475585,161.22,161.21,30.0]
[1721222157157,72.44475585,161.22,161.21,30.0]
[1721222157450,71.2027,161.22,161.21,30.0]
[1721222159157,6.2031,161.21,161.16,16.4947]
[1721222159466,66.24205585,161.2,161.18,30.0]
[1721222160057,65.0,161.2,161.18,30.0]
[1721222160649,1.24205585,161.19,161.18,30.0]
[1721222161469,65.0,161.2,161.18,30.0]
[1721222162168,65.0,161.2,161.14,30.0]
[1721222162367,65.0,161.2,161.15,1.24081677]
[1721222162538,1.24205585,161.19,161.14,30.0]
[1721222165049,1.24205585,161.19,161.15,1.24091743]
[1721222165264,1.24205585,161.19,161.16,30.0]
[1721222166768,6.2046,161.17,161.16,30.0]
[1721222166969,71.2046,161.17,161.16,30.0]
[1721222167981,72.44665585,161.17,161.1,6.44150142]
[1721222168152,65.0,161.16,161.11,30.0]
[1721222168347,1.24205585,161.15,161.11,30.0]
[1721222169383,65.0,161.16,161.11,31.2412275]
[1721222169876,65.0,161.16,161.11,30.0]
[1721222170174,65.0,161.16,161.12,1.24111774]
[1721222170345,65.0,161.16,161.13,30.0]
[1721222170741,1.24205585,161.15,161.13,30.0]
[1721222171275,7.44745585,161.15,161.13,30.0]
[1721222171572,45.0,161.14,161.13,30.0]
[1721222172280,51.2057,161.14,161.13,30.0]
[1721222172580,71.2057,161.14,161.13,30.0]
[1721222173470,6.207,161.11,161.04,22.62957584]
[1721222173679,72.44945585,161.1,161.07,30.0]
[1721222173877,1.24205585,161.09,161.07,30.0]
[1721222174595,7.44985585,161.09,161.07,30.0]
[1721222174870,65.0,161.08,161.07,30.0]
[1721222176163,27.45005585,161.08,161.07,30.0]
[1721222176951,6.2085,161.07,161.01,1.24184887]
[1721222177177,21.24205585,161.06,161.03,30.0]
[1721222178179,7.45125585,161.05,161.03,30.0]
[1721222178388,6.2092,161.05,161.03,30.0]
[1721222178591,6.2089,161.06,161.03,30.0]
[1721222178789,21.24205585,161.05,161.03,30.0]
[1721222179293,20.0,161.05,161.03,30.0]
[1721222179476,21.24205585,161.08,161.03,30.0]
[1721222179665,1.24205585,161.07,161.03,30.0]
[1721222180603,6.2096,161.04,161.03,30.0]
[1721222180900,26.2096,161.04,161.03,30.0]
[1721222181685,26.2096,161.04,160.97,30.0]
[1721222181875,1.24205585,161.03,160.97,30.0]
[1721222183072,1.24205585,161.03,160.98,1.24216733]
[1721222183273,1.24205585,161.03,161.0,30.0]
[1721222183489,20.0,161.05,161.0,30.0]
[1721222183777,1.24205585,161.04,161.0,30.0]
[1721222183973,7.45115585,161.06,161.0,30.0]
[1721222184296,20.0,161.05,161.0,30.0]
[1721222184477,21.24205585,161.05,161.0,30.0]
[1721222184798,1.24205585,161.05,161.0,30.0]
[1721222185379,7.45135585,161.05,161.0,30.0]